[Event "*** Titled Tuesday Blitz"]
[Site "Chess.com"]
[Date "2019.07.02"]
[Round "3"]
[White "adriangschnitzer"]
[Black "colegiodemadrid"]
[Result "1/2-1/2"]
[WhiteElo "2472"]
[BlackElo "2448"]
[TimeControl "180+2"]
[EndTime "13:41:01 PDT"]
[Termination "Game drawn by repetition"]

1. e4 {[%clk 0:03:01.9]} 1... c5 {[%clk 0:03:00.6]} 2. Nf3 {[%clk 0:03:02.8]}
2... d6 {[%clk 0:03:01.7]} 3. d4 {[%clk 0:03:04.2]} 3... cxd4 {[%clk 0:03:03.3]}
4. Nxd4 {[%clk 0:03:06.1]} 4... Nf6 {[%clk 0:03:04.5]} 5. Nc3 {[%clk 0:03:07.1]}
5... a6 {[%clk 0:03:05.9]} 6. Bg5 {[%clk 0:03:08.5]} 6... e6 {[%clk 0:03:05.1]}
7. f4 {[%clk 0:03:09.2]} 7... h6 {[%clk 0:03:06.6]} 8. Bh4 {[%clk 0:03:09.7]}
8... Qb6 {[%clk 0:03:08.1]} 9. a3 {[%clk 0:03:10.9]} 9... Be7 {[%clk 0:03:07.2]}
10. Bf2 {[%clk 0:03:11.2]} 10... Qc7 {[%clk 0:03:08.6]} 11. Qf3 {[%clk 0:03:08]}
11... Nbd7 {[%clk 0:03:08.8]} 12. O-O-O {[%clk 0:03:09]} 12... b5 {[%clk
0:03:09.6]} 13. g4 {[%clk 0:03:06.3]} 13... Bb7 {[%clk 0:03:10.9]} 14. Bg2
{[%clk 0:03:04.2]} 14... g5 {[%clk 0:02:53.6]} 15. h4 {[%clk 0:03:01.9]} 15...
gxf4 {[%clk 0:02:52.7]} 16. g5 {[%clk 0:02:57.9]} 16... Ne5 {[%clk 0:02:53.1]}
17. Qxf4 {[%clk 0:02:56.4]} 17... Nfg4 {[%clk 0:02:48]} 18. g6 {[%clk
0:02:51.9]} 18... Nxf2 {[%clk 0:01:53.7]} 19. gxf7+ {[%clk 0:02:50.6]} 19...
Nxf7 {[%clk 0:01:55.2]} 20. Qxf2 {[%clk 0:02:39.1]} 20... Qc5 {[%clk 0:01:50.1]}
21. Rhf1 {[%clk 0:02:32.9]} 21... Rf8 {[%clk 0:01:50]} 22. Nxe6 {[%clk
0:02:30.3]} 22... Qxf2 {[%clk 0:01:49.9]} 23. Rxf2 {[%clk 0:02:29.9]} 23... Bxh4
{[%clk 0:01:51.3]} 24. Rff1 {[%clk 0:02:22.5]} 24... Bg5+ {[%clk 0:01:49.3]} 25.
Kb1 {[%clk 0:02:22.6]} 25... Ke7 {[%clk 0:01:37.6]} 26. Nxf8 {[%clk 0:02:20.1]}
26... Rxf8 {[%clk 0:01:39]} 27. Nd5+ {[%clk 0:02:08.7]} 27... Bxd5 {[%clk
0:01:37.1]} 28. exd5 {[%clk 0:02:08]} 28... Rc8 {[%clk 0:01:35.6]} 29. Bh3
{[%clk 0:01:39.9]} 29... Rc4 {[%clk 0:01:30]} 30. b3 {[%clk 0:01:20.2]} 30...
Rh4 {[%clk 0:01:20.8]} 31. Be6 {[%clk 0:01:16]} 31... Ne5 {[%clk 0:01:21.4]} 32.
Rde1 {[%clk 0:00:52.2]} 32... a5 {[%clk 0:01:19.6]} 33. Re2 {[%clk 0:00:47.5]}
33... a4 {[%clk 0:01:18.8]} 34. Bg8 {[%clk 0:00:45]} 34... Bf6 {[%clk
0:00:51.8]} 35. Ref2 {[%clk 0:00:35.5]} 35... Bg5 {[%clk 0:00:52.4]} 36. Re2
{[%clk 0:00:35.7]} 36... Bf6 {[%clk 0:00:52.1]} 37. Ref2 {[%clk 0:00:36.9]}
37... Bg5 {[%clk 0:00:53.3]} 38. Rf8 {[%clk 0:00:38.3]} 38... axb3 {[%clk
0:00:50.1]} 39. cxb3 {[%clk 0:00:39.4]} 39... Rh3 {[%clk 0:00:49]} 40. Kc2
{[%clk 0:00:36.1]} 40... Rh2+ {[%clk 0:00:48.3]} 41. R1f2 {[%clk 0:00:36.5]}
41... Rh3 {[%clk 0:00:39.9]} 42. Rb8 {[%clk 0:00:33.2]} 42... Rh1 {[%clk
0:00:27.1]} 43. Rff8 {[%clk 0:00:20.3]} 43... Rh2+ {[%clk 0:00:27.5]} 44. Kd1
{[%clk 0:00:20.1]} 44... Rh1+ {[%clk 0:00:15.6]} 45. Ke2 {[%clk 0:00:20.8]}
45... Rh2+ {[%clk 0:00:16.8]} 46. Kf1 {[%clk 0:00:22.2]} 46... Rb2 {[%clk
0:00:11.5]} 47. Be6 {[%clk 0:00:21.5]} 47... Rb1+ {[%clk 0:00:10.7]} 48. Ke2
{[%clk 0:00:22.4]} 48... Rb2+ {[%clk 0:00:11.9]} 49. Kd1 {[%clk 0:00:23.3]}
49... Rb1+ {[%clk 0:00:09.6]} 50. Ke2 {[%clk 0:00:22.1]} 50... Rb2+ {[%clk
0:00:10.7]} 51. Kf1 {[%clk 0:00:20.8]} 51... Rb1+ {[%clk 0:00:11.7]} 52. Kg2
{[%clk 0:00:22.2]} 52... Rb2+ {[%clk 0:00:13.2]} 53. Kf1 {[%clk 0:00:20.3]}
1/2-1/2

[Event "*** Titled Tuesday Blitz"]
[Site "Chess.com"]
[Date "2019.07.02"]
[Round "3"]
[White "albano87"]
[Black "Everyfishknows"]
[Result "0-1"]
[WhiteElo "2201"]
[BlackElo "2286"]
[TimeControl "180+2"]
[EndTime "13:41:03 PDT"]
[Termination "Everyfishknows won on time"]

1. e4 {[%clk 0:03:01.9]} 1... e5 {[%clk 0:03:00.1]} 2. d4 {[%clk 0:03:00.9]}
2... exd4 {[%clk 0:03:00.7]} 3. Qxd4 {[%clk 0:03:02.4]} 3... Nc6 {[%clk
0:03:01.2]} 4. Qe3 {[%clk 0:03:04]} 4... Nf6 {[%clk 0:03:02.4]} 5. Nc3 {[%clk
0:03:05.3]} 5... Bb4 {[%clk 0:03:03.5]} 6. Bd2 {[%clk 0:03:06.7]} 6... O-O
{[%clk 0:03:04.5]} 7. O-O-O {[%clk 0:03:08.2]} 7... Re8 {[%clk 0:03:06.1]} 8. f3
{[%clk 0:03:09.7]} 8... d5 {[%clk 0:03:01.8]} 9. Qf2 {[%clk 0:03:10.9]} 9... d4
{[%clk 0:01:47.5]} 10. Nb5 {[%clk 0:03:05.4]} 10... Bxd2+ {[%clk 0:01:47.3]} 11.
Qxd2 {[%clk 0:02:58]} 11... Be6 {[%clk 0:01:38.3]} 12. Nxd4 {[%clk 0:02:58.9]}
12... Nxd4 {[%clk 0:01:39.1]} 13. Qxd4 {[%clk 0:03:00.2]} 13... Qe7 {[%clk
0:01:40.6]} 14. Qa4 {[%clk 0:03:00.3]} 14... a6 {[%clk 0:01:34.9]} 15. Bd3
{[%clk 0:02:54.1]} 15... b5 {[%clk 0:01:35.4]} 16. Qa5 {[%clk 0:02:55.5]} 16...
c5 {[%clk 0:01:30.7]} 17. e5 {[%clk 0:02:52.5]} 17... Nd5 {[%clk 0:01:25.8]} 18.
Be4 {[%clk 0:02:53.4]} 18... Ne3 {[%clk 0:00:58.4]} 19. Bxa8 {[%clk 0:02:42.1]}
19... Nxd1 {[%clk 0:00:59.3]} 20. Be4 {[%clk 0:02:35.3]} 20... Nf2 {[%clk
0:00:54.4]} 21. Ne2 {[%clk 0:02:29.8]} 21... Nxh1 {[%clk 0:00:54.3]} 22. Qxa6
{[%clk 0:02:27.8]} 22... Bc4 {[%clk 0:00:47]} 23. Nc3 {[%clk 0:02:22.9]} 23...
Nf2 {[%clk 0:00:40.7]} 24. b3 {[%clk 0:02:19.8]} 24... Nxe4 {[%clk 0:00:29.5]}
25. Nxe4 {[%clk 0:02:20.1]} 25... Bd5 {[%clk 0:00:22.6]} 26. Nd6 {[%clk
0:02:18.9]} 26... Ra8 {[%clk 0:00:19.3]} 27. Qxb5 {[%clk 0:02:18.9]} 27... Qxe5
{[%clk 0:00:19.5]} 28. Qxc5 {[%clk 0:02:19.2]} 28... h6 {[%clk 0:00:10.9]} 29.
a4 {[%clk 0:02:11.6]} 29... Qe1+ {[%clk 0:00:10.1]} 30. Kb2 {[%clk 0:02:11.3]}
30... Qe5+ {[%clk 0:00:11.1]} 31. Qc3 {[%clk 0:02:10.5]} 31... Qxd6 {[%clk
0:00:09]} 32. Qd4 {[%clk 0:02:10.9]} 32... Qf6 {[%clk 0:00:06]} 33. Kc3 {[%clk
0:02:10]} 33... Rc8+ {[%clk 0:00:06.1]} 34. Kd3 {[%clk 0:02:09.5]} 34... Qxd4+
{[%clk 0:00:07.3]} 35. Kxd4 {[%clk 0:02:11.4]} 35... Rxc2 {[%clk 0:00:05.2]} 36.
Kxd5 {[%clk 0:02:12]} 36... Kf8 {[%clk 0:00:05.5]} 37. a5 {[%clk 0:02:12.7]}
37... Ke8 {[%clk 0:00:06.7]} 38. b4 {[%clk 0:02:13.4]} 38... Kd7 {[%clk
0:00:07.7]} 39. b5 {[%clk 0:02:14]} 39... Kc7 {[%clk 0:00:08.8]} 40. g4 {[%clk
0:02:10.5]} 40... Rxh2 {[%clk 0:00:08.2]} 41. Kc5 {[%clk 0:02:05.3]} 41... Rc2+
{[%clk 0:00:08.7]} 42. Kd5 {[%clk 0:02:06.2]} 42... Rc3 {[%clk 0:00:09.7]} 43.
f4 {[%clk 0:02:05.7]} 43... Rg3 {[%clk 0:00:10.5]} 44. a6 {[%clk 0:02:02.3]}
44... Rxg4 {[%clk 0:00:10.9]} 45. Kc5 {[%clk 0:02:03.4]} 45... Rxf4 {[%clk
0:00:09.3]} 46. b6+ {[%clk 0:02:04.5]} 46... Kb8 {[%clk 0:00:10.6]} 47. Kc6
{[%clk 0:02:04.3]} 47... Rf6+ {[%clk 0:00:11.7]} 48. Kc5 {[%clk 0:02:04.8]}
48... h5 {[%clk 0:00:12.4]} 0-1

[Event "*** Titled Tuesday Blitz"]
[Site "Chess.com"]
[Date "2019.07.02"]
[Round "3"]
[White "przemekpiotrowski"]
[Black "EndgameGrinder"]
[Result "0-1"]
[WhiteElo "2364"]
[BlackElo "2580"]
[TimeControl "180+2"]
[EndTime "13:41:07 PDT"]
[Termination "EndgameGrinder won by resignation"]

1. d4 {[%clk 0:02:57.5]} 1... Nf6 {[%clk 0:03:00.7]} 2. Nf3 {[%clk 0:02:58.4]}
2... e6 {[%clk 0:02:59.8]} 3. g3 {[%clk 0:02:58.9]} 3... c5 {[%clk 0:03:00.5]}
4. Bg2 {[%clk 0:02:59.3]} 4... cxd4 {[%clk 0:03:01.3]} 5. Nxd4 {[%clk
0:03:01.2]} 5... Nc6 {[%clk 0:03:01.9]} 6. O-O {[%clk 0:03:00.9]} 6... d5 {[%clk
0:03:02.7]} 7. c4 {[%clk 0:03:01.5]} 7... Bc5 {[%clk 0:03:00.3]} 8. Nb3 {[%clk
0:03:01.4]} 8... Be7 {[%clk 0:03:00.6]} 9. Nc3 {[%clk 0:02:41.7]} 9... dxc4
{[%clk 0:02:56.8]} 10. Bxc6+ {[%clk 0:02:09.8]} 10... bxc6 {[%clk 0:02:56.7]}
11. Qxd8+ {[%clk 0:02:11.7]} 11... Bxd8 {[%clk 0:02:51.8]} 12. Nd4 {[%clk
0:02:10.2]} 12... Bd7 {[%clk 0:02:42.2]} 13. Bf4 {[%clk 0:01:54.1]} 13... Nd5
{[%clk 0:02:40.9]} 14. Bd6 {[%clk 0:01:45]} 14... Be7 {[%clk 0:02:22.5]} 15. Ne4
{[%clk 0:01:36.9]} 15... f5 {[%clk 0:01:56.7]} 16. Bxe7 {[%clk 0:01:35.5]} 16...
Kxe7 {[%clk 0:01:58.6]} 17. Nc5 {[%clk 0:01:27.5]} 17... e5 {[%clk 0:02:00.1]}
18. Nxd7 {[%clk 0:01:25.6]} 18... exd4 {[%clk 0:02:00.9]} 19. Ne5 {[%clk
0:01:26.4]} 19... c5 {[%clk 0:01:52.2]} 20. Nxc4 {[%clk 0:01:14.8]} 20... Rab8
{[%clk 0:01:38.5]} 21. Rac1 {[%clk 0:01:14.9]} 21... Rhc8 {[%clk 0:01:38.6]} 22.
Rfd1 {[%clk 0:01:12.6]} 22... Ke6 {[%clk 0:01:38.8]} 23. Rd2 {[%clk 0:01:09.9]}
23... Rb4 {[%clk 0:01:33.3]} 24. Rdc2 {[%clk 0:01:02]} 24... Nb6 {[%clk
0:01:15]} 25. Nd2 {[%clk 0:00:46.1]} 25... Na4 {[%clk 0:00:45.9]} 26. Nb3 {[%clk
0:00:36.7]} 26... Kd5 {[%clk 0:00:40.5]} 27. Rd1 {[%clk 0:00:28.8]} 27... Rcb8
{[%clk 0:00:40.1]} 28. e3 {[%clk 0:00:29.6]} 28... Rxb3 {[%clk 0:00:28.9]} 29.
axb3 {[%clk 0:00:28.3]} 29... Rxb3 {[%clk 0:00:30.8]} 30. exd4 {[%clk
0:00:29.6]} 30... cxd4 {[%clk 0:00:32.7]} 31. Rc7 {[%clk 0:00:30.7]} 31... d3
{[%clk 0:00:27.8]} 32. Rd7+ {[%clk 0:00:30.3]} 32... Kc4 {[%clk 0:00:23.2]} 33.
Rc7+ {[%clk 0:00:29.3]} 33... Kd4 {[%clk 0:00:22.1]} 34. Rd7+ {[%clk 0:00:29.9]}
34... Kc4 {[%clk 0:00:22.6]} 35. Rc1+ {[%clk 0:00:31.1]} 35... Kb5 {[%clk
0:00:19.9]} 36. Rb7+ {[%clk 0:00:32]} 36... Nb6 {[%clk 0:00:21.3]} 37. Rd1
{[%clk 0:00:30.1]} 37... a5 {[%clk 0:00:21.3]} 38. Rxg7 {[%clk 0:00:30.7]} 38...
a4 {[%clk 0:00:21.1]} 39. Rxh7 {[%clk 0:00:32]} 39... Kc6 {[%clk 0:00:19.4]} 40.
Rh6+ {[%clk 0:00:31.9]} 40... Kc5 {[%clk 0:00:19.2]} 41. Rf6 {[%clk 0:00:32.7]}
41... Nc4 {[%clk 0:00:20]} 42. Rxf5+ {[%clk 0:00:33.4]} 42... Kd4 {[%clk
0:00:21.4]} 43. Rf4+ {[%clk 0:00:33.9]} 43... Kd5 {[%clk 0:00:22.9]} 44. Rf3
{[%clk 0:00:34.9]} 44... Nxb2 {[%clk 0:00:23.8]} 45. Rd2 {[%clk 0:00:33.4]}
45... a3 {[%clk 0:00:25]} 46. Rf5+ {[%clk 0:00:30.8]} 46... Kc4 {[%clk
0:00:25.5]} 47. Ra5 {[%clk 0:00:31.7]} 47... Kc3 {[%clk 0:00:26.6]} 48. Rxd3+
{[%clk 0:00:32.4]} 48... Nxd3 {[%clk 0:00:26.2]} 49. h4 {[%clk 0:00:33.9]} 49...
Kb2 {[%clk 0:00:27.6]} 50. h5 {[%clk 0:00:34.9]} 50... a2 {[%clk 0:00:27.8]} 51.
h6 {[%clk 0:00:36.1]} 51... Rb7 {[%clk 0:00:28.3]} 52. g4 {[%clk 0:00:34.3]}
52... a1=Q+ {[%clk 0:00:28.7]} 53. Rxa1 {[%clk 0:00:35.4]} 53... Kxa1 {[%clk
0:00:30.6]} 54. g5 {[%clk 0:00:36.6]} 54... Nf4 {[%clk 0:00:31.7]} 55. Kh2
{[%clk 0:00:37]} 55... Rb3 {[%clk 0:00:22.5]} 56. h7 {[%clk 0:00:21.5]} 56...
Rh3+ {[%clk 0:00:22.5]} 0-1

[Event "*** Titled Tuesday Blitz"]
[Site "Chess.com"]
[Date "2019.07.02"]
[Round "3"]
[White "Sanan_Sjugirov"]
[Black "BlueWizzard"]
[Result "1-0"]
[WhiteElo "2956"]
[BlackElo "2717"]
[TimeControl "180+2"]
[EndTime "13:41:13 PDT"]
[Termination "Sanan_Sjugirov won by resignation"]

1. d4 {[%clk 0:03:01.9]} 1... Nf6 {[%clk 0:02:59.6]} 2. c4 {[%clk 0:03:02.5]}
2... c5 {[%clk 0:02:59.8]} 3. d5 {[%clk 0:03:03]} 3... g6 {[%clk 0:03:01.3]} 4.
Nc3 {[%clk 0:03:03.5]} 4... Bg7 {[%clk 0:03:02.8]} 5. e4 {[%clk 0:03:04.4]} 5...
O-O {[%clk 0:03:04.4]} 6. h3 {[%clk 0:02:56]} 6... e6 {[%clk 0:03:04.9]} 7. Bd3
{[%clk 0:02:55.9]} 7... d6 {[%clk 0:03:05.9]} 8. Nf3 {[%clk 0:02:56.3]} 8... Na6
{[%clk 0:03:07.4]} 9. O-O {[%clk 0:02:56.4]} 9... Nc7 {[%clk 0:03:08.8]} 10. Bg5
{[%clk 0:02:42.9]} 10... Qe7 {[%clk 0:03:09.1]} 11. Qd2 {[%clk 0:02:42]} 11...
e5 {[%clk 0:03:07.8]} 12. Ne1 {[%clk 0:02:33]} 12... Qe8 {[%clk 0:03:04.9]} 13.
Nc2 {[%clk 0:02:21.8]} 13... Nh5 {[%clk 0:03:04.2]} 14. Be2 {[%clk 0:02:19]}
14... f6 {[%clk 0:02:59]} 15. Be3 {[%clk 0:02:17.2]} 15... f5 {[%clk 0:02:59.6]}
16. Bxh5 {[%clk 0:02:04.3]} 16... gxh5 {[%clk 0:03:01.5]} 17. f4 {[%clk
0:01:58.3]} 17... Qg6 {[%clk 0:02:58.7]} 18. fxe5 {[%clk 0:01:55.7]} 18... Bxe5
{[%clk 0:02:57.5]} 19. Bf4 {[%clk 0:01:53]} 19... Bg7 {[%clk 0:02:51.4]} 20.
Rae1 {[%clk 0:01:42.3]} 20... fxe4 {[%clk 0:02:48.4]} 21. Nxe4 {[%clk
0:01:44.2]} 21... Bxh3 {[%clk 0:02:35]} 22. Bxd6 {[%clk 0:01:37.2]} 22... Rxf1+
{[%clk 0:02:33.9]} 23. Rxf1 {[%clk 0:01:39.1]} 23... Qxe4 {[%clk 0:02:19.2]} 24.
Bxc7 {[%clk 0:01:40.1]} 24... Bf5 {[%clk 0:02:11.7]} 25. d6 {[%clk 0:01:27.8]}
25... Kh8 {[%clk 0:01:55.5]} 26. Rxf5 {[%clk 0:00:57.4]} 26... Qxf5 {[%clk
0:01:43.6]} 27. d7 {[%clk 0:00:58.6]} 27... Bf6 {[%clk 0:01:27.1]} 28. d8=Q+
{[%clk 0:00:43.8]} 28... Bxd8 {[%clk 0:01:27.7]} 29. Bxd8 {[%clk 0:00:45.2]}
29... Qe5 {[%clk 0:01:25.8]} 30. Ba5 {[%clk 0:00:17]} 30... Kg8 {[%clk
0:01:26.2]} 31. Bc3 {[%clk 0:00:17.5]} 31... Qf5 {[%clk 0:01:14.4]} 32. Ne3
{[%clk 0:00:17.9]} 32... Qb1+ {[%clk 0:01:13.9]} 33. Kh2 {[%clk 0:00:18.8]}
33... Qe4 {[%clk 0:01:15.3]} 34. Nd5 {[%clk 0:00:15.7]} 34... Qh4+ {[%clk
0:01:10.8]} 35. Kg1 {[%clk 0:00:16.9]} 35... Rf8 {[%clk 0:01:12.4]} 36. Qe3
{[%clk 0:00:14.8]} 36... Kf7 {[%clk 0:01:05]} 37. Nf6 {[%clk 0:00:06.4]} 37...
Qxc4 {[%clk 0:01:00]} 38. Nd7 {[%clk 0:00:07]} 38... Re8 {[%clk 0:00:51.5]} 39.
Ne5+ {[%clk 0:00:08.2]} 39... Rxe5 {[%clk 0:00:53.1]} 40. Qxe5 {[%clk
0:00:10.1]} 40... Qxa2 {[%clk 0:00:53.7]} 41. Qxh5+ {[%clk 0:00:11.2]} 41... Ke6
{[%clk 0:00:52.5]} 42. Qxc5 {[%clk 0:00:13]} 42... Qb1+ {[%clk 0:00:51]} 43. Kh2
{[%clk 0:00:14.4]} 43... Qe4 {[%clk 0:00:52.5]} 44. Qc8+ {[%clk 0:00:14.8]}
44... Kd6 {[%clk 0:00:51.9]} 45. Qd8+ {[%clk 0:00:14.3]} 45... Kc6 {[%clk
0:00:51.4]} 46. Qd4 {[%clk 0:00:13.7]} 46... Qe6 {[%clk 0:00:49.6]} 47. Qa4+
{[%clk 0:00:11.7]} 47... Kc7 {[%clk 0:00:45.2]} 48. Qf4+ {[%clk 0:00:12.7]}
48... Kc6 {[%clk 0:00:45.9]} 49. Qf6 {[%clk 0:00:13.7]} 49... Qxf6 {[%clk
0:00:42.9]} 50. Bxf6 {[%clk 0:00:15.6]} 50... a5 {[%clk 0:00:42.4]} 51. Kg3
{[%clk 0:00:16.9]} 51... Kd5 {[%clk 0:00:43.4]} 52. Kg4 {[%clk 0:00:18]} 52...
Ke6 {[%clk 0:00:40.8]} 53. Bc3 {[%clk 0:00:18.9]} 53... a4 {[%clk 0:00:39.8]}
54. Kg5 {[%clk 0:00:20.1]} 54... Kf7 {[%clk 0:00:40.8]} 55. Kh6 {[%clk 0:00:21]}
55... Kg8 {[%clk 0:00:42.3]} 56. g4 {[%clk 0:00:21.5]} 56... b6 {[%clk
0:00:30.1]} 57. Bd4 {[%clk 0:00:16.6]} 57... b5 {[%clk 0:00:30.1]} 58. Bc3
{[%clk 0:00:17.6]} 1-0

[Event "*** Titled Tuesday Blitz"]
[Site "Chess.com"]
[Date "2019.07.02"]
[Round "3"]
[White "marianokar"]
[Black "Oleg_Papayan"]
[Result "1/2-1/2"]
[WhiteElo "2450"]
[BlackElo "2507"]
[TimeControl "180+2"]
[EndTime "13:41:13 PDT"]
[Termination "Game drawn by repetition"]

1. c4 {[%clk 0:03:01.9]} 1... g6 {[%clk 0:02:58.2]} 2. g3 {[%clk 0:03:00.9]}
2... c5 {[%clk 0:02:59.2]} 3. Bg2 {[%clk 0:03:01.3]} 3... Bg7 {[%clk 0:03:00.5]}
4. Nf3 {[%clk 0:03:01.7]} 4... d6 {[%clk 0:03:01]} 5. O-O {[%clk 0:03:00.9]}
5... e5 {[%clk 0:03:01.3]} 6. d3 {[%clk 0:02:55.6]} 6... Nc6 {[%clk 0:03:02.4]}
7. Nc3 {[%clk 0:02:55.8]} 7... Nge7 {[%clk 0:03:03.6]} 8. Rb1 {[%clk 0:02:56.7]}
8... O-O {[%clk 0:03:04.4]} 9. Ne1 {[%clk 0:02:56.5]} 9... h6 {[%clk 0:02:51]}
10. Nc2 {[%clk 0:02:57]} 10... f5 {[%clk 0:02:52.1]} 11. Ne3 {[%clk 0:02:57.9]}
11... Be6 {[%clk 0:02:46.5]} 12. Ned5 {[%clk 0:02:58.3]} 12... Qd7 {[%clk
0:02:47.6]} 13. f4 {[%clk 0:02:42.8]} 13... Kh7 {[%clk 0:02:33.2]} 14. a3 {[%clk
0:02:38.8]} 14... Rae8 {[%clk 0:02:31.5]} 15. b4 {[%clk 0:02:34.3]} 15... b6
{[%clk 0:02:32.7]} 16. b5 {[%clk 0:02:27.4]} 16... Nd8 {[%clk 0:02:25.5]} 17.
Nxe7 {[%clk 0:01:55.8]} 17... Qxe7 {[%clk 0:02:23.1]} 18. Nd5 {[%clk 0:01:55]}
18... Bxd5 {[%clk 0:02:04.5]} 19. Bxd5 {[%clk 0:01:55.7]} 19... Ne6 {[%clk
0:02:04.4]} 20. e3 {[%clk 0:01:38.5]} 20... h5 {[%clk 0:01:44.9]} 21. Bd2 {[%clk
0:01:11.4]} 21... h4 {[%clk 0:01:41.9]} 22. Qf3 {[%clk 0:01:11.4]} 22... Nc7
{[%clk 0:01:31.8]} 23. Bc6 {[%clk 0:01:10.4]} 23... Rd8 {[%clk 0:01:30.5]} 24.
a4 {[%clk 0:01:10.3]} 24... d5 {[%clk 0:01:22.7]} 25. cxd5 {[%clk 0:00:28.9]}
25... e4 {[%clk 0:01:23.3]} 26. dxe4 {[%clk 0:00:29.8]} 26... fxe4 {[%clk
0:01:25.2]} 27. Qg4 {[%clk 0:00:27.2]} 27... Rf5 {[%clk 0:01:13.2]} 28. Rbd1
{[%clk 0:00:20.2]} 28... Nxd5 {[%clk 0:01:13.9]} 29. Bc1 {[%clk 0:00:19]} 29...
Nf6 {[%clk 0:00:49.1]} 30. Qh3 {[%clk 0:00:17.6]} 30... c4 {[%clk 0:00:45.3]}
31. g4 {[%clk 0:00:17.6]} 31... Rc5 {[%clk 0:00:33.2]} 32. Qxh4+ {[%clk
0:00:18.6]} 32... Kg8 {[%clk 0:00:33.4]} 33. g5 {[%clk 0:00:18.1]} 33... Nd5
{[%clk 0:00:28.9]} 34. Qg4 {[%clk 0:00:15.9]} 34... c3 {[%clk 0:00:21.1]} 35. h4
{[%clk 0:00:15.7]} 35... c2 {[%clk 0:00:22]} 36. Rd2 {[%clk 0:00:16.9]} 36...
Nb4 {[%clk 0:00:12.4]} 37. Rxd8+ {[%clk 0:00:16.7]} 37... Qxd8 {[%clk
0:00:14.3]} 38. Qe6+ {[%clk 0:00:18]} 38... Kh8 {[%clk 0:00:15.9]} 39. Qxe4
{[%clk 0:00:17.4]} 39... Qd1 {[%clk 0:00:15.2]} 40. Qxg6 {[%clk 0:00:16.6]}
40... Nxc6 {[%clk 0:00:16]} 41. bxc6 {[%clk 0:00:16.8]} 41... Qg4+ {[%clk
0:00:15.1]} 42. Kf2 {[%clk 0:00:15.7]} 42... Rf5 {[%clk 0:00:09.7]} 43. Qe8+
{[%clk 0:00:12.7]} 43... Rf8 {[%clk 0:00:10.4]} 44. Qd7 {[%clk 0:00:12.6]} 44...
Qxh4+ {[%clk 0:00:11.8]} 45. Ke2 {[%clk 0:00:13.9]} 45... Qh5+ {[%clk
0:00:12.6]} 46. Kd3 {[%clk 0:00:13.9]} 46... Qd1+ {[%clk 0:00:08.9]} 47. Ke4
{[%clk 0:00:11.8]} 47... Qxf1 {[%clk 0:00:09.2]} 48. Bd2 {[%clk 0:00:13]} 48...
Qc4+ {[%clk 0:00:09.3]} 49. Kf3 {[%clk 0:00:13.1]} 49... Qf1+ {[%clk 0:00:10.5]}
50. Ke4 {[%clk 0:00:13.3]} 50... Qg2+ {[%clk 0:00:08.2]} 51. Kd3 {[%clk
0:00:14.3]} 51... Qf1+ {[%clk 0:00:05.8]} 52. Ke4 {[%clk 0:00:14.1]} 1/2-1/2

[Event "*** Titled Tuesday Blitz"]
[Site "Chess.com"]
[Date "2019.07.02"]
[Round "3"]
[White "CookiesAndIceCream"]
[Black "Der_Honigdachs"]
[Result "1-0"]
[WhiteElo "2359"]
[BlackElo "2578"]
[TimeControl "180+2"]
[EndTime "13:41:15 PDT"]
[Termination "CookiesAndIceCream won by resignation"]

1. e4 {[%clk 0:03:01.9]} 1... e5 {[%clk 0:02:57.1]} 2. Nf3 {[%clk 0:03:01.6]}
2... Nc6 {[%clk 0:02:58.5]} 3. Nc3 {[%clk 0:03:02.3]} 3... Nf6 {[%clk
0:02:58.8]} 4. Bb5 {[%clk 0:03:03.8]} 4... Bb4 {[%clk 0:02:56.1]} 5. O-O {[%clk
0:03:04.4]} 5... O-O {[%clk 0:02:53.8]} 6. d3 {[%clk 0:03:05.3]} 6... d6 {[%clk
0:02:54.6]} 7. Ne2 {[%clk 0:03:06]} 7... Qe7 {[%clk 0:02:44.3]} 8. c3 {[%clk
0:03:06.6]} 8... Ba5 {[%clk 0:02:43.7]} 9. Ng3 {[%clk 0:03:08]} 9... Nd8 {[%clk
0:02:43.3]} 10. d4 {[%clk 0:03:07.8]} 10... c6 {[%clk 0:02:44]} 11. Bd3 {[%clk
0:03:08.1]} 11... Bc7 {[%clk 0:02:45.6]} 12. Re1 {[%clk 0:03:06.3]} 12... Re8
{[%clk 0:02:43.8]} 13. h3 {[%clk 0:02:59.6]} 13... Qf8 {[%clk 0:02:43.5]} 14.
Bg5 {[%clk 0:02:57.8]} 14... Re6 {[%clk 0:02:39.2]} 15. Bc4 {[%clk 0:02:47.8]}
15... d5 {[%clk 0:02:36.3]} 16. exd5 {[%clk 0:02:30.7]} 16... cxd5 {[%clk
0:02:36.3]} 17. dxe5 {[%clk 0:02:17.5]} 17... dxc4 {[%clk 0:02:34.4]} 18. exf6
{[%clk 0:02:16.2]} 18... gxf6 {[%clk 0:02:26]} 19. Be3 {[%clk 0:02:16.4]} 19...
Bxg3 {[%clk 0:02:18.8]} 20. fxg3 {[%clk 0:02:16.3]} 20... Nc6 {[%clk 0:02:15.7]}
21. Qd5 {[%clk 0:02:00]} 21... Ne5 {[%clk 0:01:48.8]} 22. Nd4 {[%clk 0:01:57.6]}
22... Rd6 {[%clk 0:01:47.4]} 23. Qe4 {[%clk 0:01:42.9]} 23... Be6 {[%clk
0:01:40.2]} 24. Rf1 {[%clk 0:01:29.9]} 24... Qg7 {[%clk 0:01:40.5]} 25. Qh4
{[%clk 0:01:23]} 25... Re8 {[%clk 0:01:34.1]} 26. Bh6 {[%clk 0:01:03.1]} 26...
Ng6 {[%clk 0:01:07.8]} 27. Bxg7 {[%clk 0:00:48.2]} 27... Nxh4 {[%clk 0:01:08.1]}
28. Bxf6 {[%clk 0:00:49]} 28... Ng6 {[%clk 0:01:06.4]} 29. Rae1 {[%clk
0:00:44.3]} 29... Bd7 {[%clk 0:01:01.4]} 30. Rxe8+ {[%clk 0:00:36.8]} 30... Bxe8
{[%clk 0:01:03.3]} 31. g4 {[%clk 0:00:28.1]} 31... Bd7 {[%clk 0:00:58.8]} 32. g5
{[%clk 0:00:25.1]} 32... Rb6 {[%clk 0:00:56.9]} 33. Rf2 {[%clk 0:00:25.3]} 33...
Ra6 {[%clk 0:00:57.1]} 34. a3 {[%clk 0:00:25.5]} 34... Rd6 {[%clk 0:00:47.7]}
35. Re2 {[%clk 0:00:25.6]} 35... h6 {[%clk 0:00:48.2]} 36. Kf2 {[%clk
0:00:16.1]} 36... Nf4 {[%clk 0:00:43.9]} 37. Rd2 {[%clk 0:00:10.6]} 37... Nd3+
{[%clk 0:00:41.3]} 38. Kg3 {[%clk 0:00:04.5]} 38... hxg5 {[%clk 0:00:37.6]} 39.
Bxg5 {[%clk 0:00:06.4]} 39... Rg6 {[%clk 0:00:37.3]} 40. Kh4 {[%clk 0:00:07.9]}
40... f6 {[%clk 0:00:24.4]} 41. Be3 {[%clk 0:00:08.3]} 41... Kf7 {[%clk
0:00:24.8]} 42. g4 {[%clk 0:00:09.2]} 42... Ne5 {[%clk 0:00:19.2]} 43. Kg3
{[%clk 0:00:09.4]} 43... f5 {[%clk 0:00:19.4]} 44. Rf2 {[%clk 0:00:09.1]} 44...
Nd3 {[%clk 0:00:17.7]} 45. Rf1 {[%clk 0:00:10.1]} 45... Rb6 {[%clk 0:00:16.4]}
46. Nxf5 {[%clk 0:00:10.3]} 46... Rxb2 {[%clk 0:00:16.9]} 47. Nd6+ {[%clk
0:00:08.1]} 47... Ke7 {[%clk 0:00:16.8]} 48. Nxc4 {[%clk 0:00:09.5]} 48... Rb3
{[%clk 0:00:16.4]} 49. Bd4 {[%clk 0:00:10.1]} 49... Bc6 {[%clk 0:00:15.1]} 50.
Rd1 {[%clk 0:00:09.3]} 50... Nb2 {[%clk 0:00:12.9]} 51. Rb1 {[%clk 0:00:10]}
51... Bb5 {[%clk 0:00:04.9]} 52. Nxb2 {[%clk 0:00:07.6]} 52... Bd3 {[%clk
0:00:06.3]} 53. Re1+ {[%clk 0:00:08]} 53... Kd7 {[%clk 0:00:06.7]} 54. Nxd3
{[%clk 0:00:09.4]} 54... Rxc3 {[%clk 0:00:08.6]} 55. Bxc3 {[%clk 0:00:09.9]} 1-0